bitfinex/quotes_BTCUSD_20251011
["timestamp","ask_amount","ask_price","bid_price","bid_amount"]
[1760159330140,8.849e-05,112990.0,112980.0,0.96035515]
[1760159330341,8.849e-05,112990.0,112980.0,1.30035515]
[1760159330550,0.16790062,113020.0,113010.0,0.17697548]
[1760159330752,0.00462578,113020.0,113010.0,0.20660548]
[1760159330960,0.00462578,113020.0,113010.0,0.95650262]
[1760159331621,0.00462578,113020.0,113010.0,0.30551548]
[1760159332643,0.00462578,113020.0,113010.0,0.38480457]
[1760159333058,0.0047143,113020.0,113010.0,0.38480457]
[1760159333805,0.00010773,113020.0,113010.0,0.30551548]
[1760159334025,0.17660682,113030.0,113010.0,0.38480457]
[1760159334200,0.20675872,113030.0,113020.0,0.09119]
[1760159334609,0.21138427,113030.0,113020.0,0.12854]
[1760159337061,0.00083647,113030.0,113020.0,0.12854]
[1760159337300,0.17778258,113030.0,113020.0,0.12854]
[1760159337497,0.17694611,113030.0,113020.0,0.12854]
[1760159337746,0.18157165,113030.0,113020.0,0.12854]
[1760159339273,0.20123165,113030.0,113020.0,0.06698]
[1760159339494,0.17695983,113020.0,113010.0,0.09213575]
[1760159339719,0.17695983,113020.0,113010.0,0.12948575]
[1760159339919,0.17695983,113020.0,113010.0,0.30646123]
[1760159340543,0.17695983,113020.0,113010.0,0.12948575]
[1760159340951,0.18157165,113030.0,113010.0,0.30646123]
[1760159341162,0.18157165,113030.0,113020.0,0.09119]
[1760159341335,0.18157165,113030.0,113020.0,0.02963]
[1760159341549,0.20123165,113030.0,113020.0,0.06698]
[1760159341753,0.18157165,113030.0,113020.0,0.12854]
[1760159343331,0.18156971,113030.0,113020.0,0.12854]
[1760159344371,0.17696329,113030.0,113020.0,0.12854]
[1760159344572,0.17696329,113030.0,113020.0,0.30549983]
[1760159344573,0.17694417,113030.0,113020.0,0.30549983]
[1760159345194,0.17668917,113030.0,113020.0,0.30549983]
[1760159347237,0.17668917,113030.0,113020.0,0.38478892]
[1760159350180,0.16747322,113030.0,113020.0,0.20782909]
[1760159350628,0.18713322,113030.0,113020.0,0.14626909]
[1760159351041,0.16747322,113030.0,113020.0,0.20782909]
[1760159351691,0.18713322,113030.0,113020.0,0.20782909]
[1760159351897,0.16747322,113030.0,113020.0,0.12854]
[1760159352404,0.16747322,113030.0,113020.0,0.20782909]
[1760159352731,0.19175863,113030.0,113020.0,0.14626909]
[1760159352924,0.17695983,113020.0,113010.0,0.08023484]
[1760159353110,0.17695983,113020.0,113010.0,0.38575032]
[1760159353272,0.17437042,113020.0,113010.0,0.38575032]
[1760159353983,0.20225053,113030.0,113010.0,0.38575032]
[1760159354186,0.17695983,113020.0,113010.0,0.38575032]
[1760159356207,0.19661983,113020.0,113010.0,0.14721484]
[1760159356982,0.22677173,113020.0,113010.0,0.08023484]
[1760159359441,0.22677173,113020.0,113010.0,0.00094575]
[1760159361049,0.22677173,113020.0,113010.0,0.04143575]
[1760159361619,0.22677173,113020.0,113010.0,0.06990575]
[1760159362220,0.22677173,113020.0,113010.0,0.30421123]
[1760159362221,0.17695983,113020.0,113010.0,0.30421123]
[1760159362565,0.60867322,113030.0,113010.0,0.30421123]
[1760159362768,0.60867322,113030.0,113010.0,0.4138704]
[1760159363005,0.78767322,113030.0,113020.0,0.16514197]
[1760159363204,0.78445035,113030.0,113020.0,0.20563197]
[1760159363964,0.78445035,113030.0,113020.0,0.3825918]
[1760159364177,0.35594417,113030.0,113020.0,0.20563197]
[1760159364968,0.37410417,113030.0,113020.0,0.14830197]
[1760159365162,0.35694417,113030.0,113020.0,0.14830197]
[1760159365407,0.35694417,113030.0,113020.0,0.20563197]
[1760159365565,0.1752323,113030.0,113020.0,0.10781197]
[1760159365767,0.17695983,113020.0,113010.0,0.37338033]
[1760159365967,0.17695983,113020.0,113010.0,0.38355313]
[1760159366445,0.17695983,113020.0,113010.0,0.30421116]
[1760159366649,0.17695983,113020.0,113010.0,0.38355313]
[1760159367430,0.13260764,113030.0,113010.0,0.38355313]
[1760159367593,0.17695983,113020.0,113010.0,0.30421116]
[1760159367792,0.17695983,113020.0,113010.0,0.12723575]
[1760159368825,0.19511983,113020.0,113010.0,0.06990575]
[1760159369778,0.19726555,113020.0,113010.0,0.06990575]
[1760159371541,0.17910555,113020.0,113010.0,0.30421123]
[1760159371749,0.20711173,113020.0,113010.0,0.30421123]
[1760159372340,0.18619791,113030.0,113010.0,0.95519837]
[1760159372543,0.18619791,113030.0,113020.0,0.0858]
[1760159372544,0.18619449,113030.0,113020.0,0.0858]
[1760159372742,0.18619449,113030.0,113020.0,0.12629]
[1760159372940,0.21634639,113030.0,113020.0,0.12629]
[1760159373749,0.21634639,113030.0,113020.0,0.30324983]
[1760159373750,0.03940222,113030.0,113020.0,0.30324983]
[1760159373975,0.00925032,113030.0,113020.0,0.95423697]
[1760159374213,0.00925032,113030.0,113020.0,0.30324983]
[1760159374611,0.18619449,113030.0,113020.0,0.30324983]
[1760159375026,0.18719449,113030.0,113020.0,0.12629]
[1760159375348,0.199835,113030.0,113020.0,0.06896]
[1760159375564,0.17794417,113030.0,113020.0,0.12629]
[1760159376444,0.17794417,113030.0,113020.0,0.30324983]
[1760159377210,0.001,113030.0,113020.0,0.30324983]
[1760159377421,0.17794417,113030.0,113020.0,0.3825918]
[1760159377618,0.17694417,113030.0,113020.0,0.3825918]
[1760159379074,0.19510417,113030.0,113020.0,0.3825918]
[1760159380031,0.17694417,113030.0,113020.0,0.30324983]
[1760159381331,0.18578641,113040.0,113020.0,0.30324983]
[1760159381454,0.55593831,113040.0,113030.0,0.07937135]
[1760159381661,0.57409831,113040.0,113030.0,0.11986135]
[1760159381895,0.57409831,113040.0,113030.0,0.14833135]
[1760159382144,0.55593831,113040.0,113030.0,0.20566135]
[1760159382318,0.58544831,113040.0,113030.0,0.07937135]
[1760159382704,0.58644831,113040.0,113030.0,0.07937135]
[1760159383095,0.57509831,113040.0,113030.0,0.07937135]
[1760159383346,0.57049219,113040.0,113030.0,0.07937135]
[1760159383523,0.17694417,113030.0,113020.0,0.34213118]
[1760159383894,0.17694417,113030.0,113020.0,0.16517135]
[1760159384103,0.17694417,113030.0,113020.0,0.38262118]
[1760159384518,0.17694417,113030.0,113020.0,0.30324983]
[1760159385120,0.17019909,113030.0,113020.0,0.30324983]
[1760159385402,0.16721949,113030.0,113020.0,0.38264655]
[1760159385622,0.16984767,113030.0,113020.0,0.87649784]
[1760159385826,0.16984767,113030.0,113020.0,0.69953801]
[1760159386039,0.16419206,113030.0,113020.0,0.69953801]
[1760159386226,0.16184058,113030.0,113020.0,0.69953801]
[1760159386394,0.15287372,113030.0,113020.0,0.62014344]
[1760159387009,0.15287372,113030.0,113020.0,0.1272357]
[1760159387170,0.15287372,113030.0,113020.0,0.62108914]
[1760159387366,0.14826685,113030.0,113020.0,0.62108914]
[1760159389095,0.14826685,113030.0,113020.0,0.79804897]
[1760159389546,0.14366258,113030.0,113020.0,0.79804897]
[1760159389989,0.1623679,113030.0,113020.0,0.0803596]
[1760159390210,0.17808345,113030.0,113020.0,0.0803596]
[1760159391603,0.16699345,113030.0,113020.0,0.0803596]
[1760159392049,0.11866606,113030.0,113020.0,0.0803596]
[1760159392659,0.11866606,113030.0,113020.0,0.0009457]
[1760159392837,0.12975606,113030.0,113020.0,0.0009457]
[1760159394458,0.12975606,113030.0,113020.0,0.0803596]
[1760159396022,0.11513049,113030.0,113020.0,0.0803596]
[1760159396242,0.10914909,113030.0,113020.0,0.1209496]
[1760159397721,0.10302665,113030.0,113020.0,0.1209496]
[1760159397857,0.09502094,113030.0,113020.0,0.1209496]
[1760159398713,0.09041408,113030.0,113020.0,0.1209496]
[1760159399013,0.23042694,113030.0,113020.0,0.08863073]
[1760159399214,0.24151694,113030.0,113020.0,0.08863073]
[1760159399788,0.24151694,113030.0,113020.0,0.0803596]
[1760159400604,0.23042694,113030.0,113020.0,0.0803596]
[1760159400815,0.22776544,113030.0,113020.0,0.2088496]
[1760159401158,0.22214378,113030.0,113020.0,0.2088496]
[1760159401289,0.21674897,113030.0,113020.0,0.1485596]
[1760159401652,0.20027504,113030.0,113020.0,0.2088496]
[1760159401852,0.20027504,113030.0,113020.0,0.1485596]
[1760159402866,0.19567181,113030.0,113020.0,0.1485596]
[1760159403664,0.03477745,113030.0,113020.0,0.38580943]
[1760159403891,0.51818179,113040.0,113020.0,0.87966287]
[1760159404111,0.17694417,113030.0,113020.0,0.1294357]
[1760159404670,0.18386712,113030.0,113020.0,0.0691457]
[1760159404870,0.18175109,113030.0,113020.0,0.0691457]
[1760159405116,0.17893712,113030.0,113020.0,0.0691457]
[1760159405924,0.19755902,113030.0,113020.0,0.0691457]
[1760159406122,0.19755902,113030.0,113020.0,0.1294357]
[1760159406469,0.19755902,113030.0,113020.0,0.30639553]
[1760159406883,0.19755902,113030.0,113020.0,0.1294357]
[1760159407936,0.1972519,113030.0,113020.0,0.1294357]
[1760159408756,0.1972519,113030.0,113020.0,0.0691457]
[1760159408959,0.2087819,113030.0,113020.0,0.0691457]
[1760159409240,0.1972519,113030.0,113020.0,0.1294357]
[1760159409674,0.18348737,113030.0,113020.0,0.80024897]
[1760159409960,0.18348737,113030.0,113020.0,0.62328914]
[1760159410119,0.18348737,113030.0,113020.0,0.1294357]
[1760159410910,0.17888004,113030.0,113020.0,0.1294357]
[1760159411582,0.19041004,113030.0,113020.0,0.0691457]
[1760159411802,0.18580474,113030.0,113020.0,0.0691457]
[1760159413244,0.19300474,113030.0,113020.0,0.0009457]
[1760159414246,0.19300474,113030.0,113020.0,0.0803596]
[1760159415255,0.52839542,113030.0,113020.0,0.0803596]
[1760159416178,0.52378913,113030.0,113020.0,0.0803596]
[1760159418019,0.52096057,113030.0,113020.0,0.0803596]
[1760159419658,0.51476057,113030.0,113020.0,0.0803596]
[1760159419862,0.51476057,113030.0,113020.0,0.2088496]
[1760159420117,0.51476057,113030.0,113020.0,0.1485596]
[1760159420604,0.4986234,113030.0,113020.0,0.38141943]
[1760159420808,0.4976234,113030.0,113020.0,0.38141943]
[1760159421131,0.4986234,113030.0,113020.0,0.2044596]
[1760159421332,0.5095234,113030.0,113020.0,0.1485596]
[1760159424285,0.5163334,113030.0,113020.0,0.0803596]
[1760159431633,0.5095234,113030.0,113020.0,0.1200296]
[1760159431772,0.5095234,113030.0,113020.0,0.0803596]
[1760159434496,0.54297031,113030.0,113020.0,0.0803596]
[1760159437202,0.36054001,113030.0,113020.0,0.0803596]
[1760159437522,0.22229108,113030.0,113020.0,0.0009457]
[1760159437746,0.21548108,113030.0,113020.0,0.0009457]
[1760159438552,0.21548108,113030.0,113020.0,0.0406157]
[1760159439256,0.21548108,113030.0,113020.0,0.0009457]
[1760159439454,0.22229108,113030.0,113020.0,0.0009457]
[1760159439852,0.66349108,113030.0,113020.0,0.0009457]
[1760159441323,0.69364298,113030.0,113020.0,0.0009457]
[1760159442524,0.25244298,113030.0,113020.0,0.0009457]
[1760159442862,0.59244298,113030.0,113020.0,0.0009457]
[1760159446809,0.17697548,113010.0,113000.0,0.34952589]
[1760159447043,0.17697548,113010.0,113000.0,0.38919589]
[1760159447267,0.18019118,113010.0,113000.0,0.0794139]
[1760159447467,0.17699115,113000.0,112990.0,0.13812917]
[1760159447670,0.56476305,113000.0,112990.0,0.07921869]
[1760159448206,0.59140952,113000.0,112990.0,0.07921869]
[1760159448618,0.59145951,113000.0,112990.0,0.07921869]
[1760159449312,0.17700681,112990.0,112980.0,0.07921869]
[1760159449773,0.18763681,112990.0,112980.0,0.07921869]
[1760159450204,0.19427681,112990.0,112980.0,0.07921869]
[1760159451612,0.25107518,112990.0,112980.0,0.07921869]
[1760159451825,0.54717438,112980.0,112970.0,0.07921869]
[1760159452155,0.56444438,112980.0,112970.0,0.07921869]
[1760159452383,0.20719005,112970.0,112960.0,0.07921869]
[1760159452589,0.22047005,112970.0,112960.0,0.07921869]
[1760159452797,0.23110005,112970.0,112960.0,0.08265847]
[1760159453224,0.2577522,112970.0,112960.0,0.08265847]
[1760159453870,0.2276003,112970.0,112960.0,0.08265847]
[1760159454500,0.2577522,112970.0,112960.0,0.08265847]
[1760159456140,0.2577522,112970.0,112960.0,0.00343978]
[1760159458523,0.17706949,112950.0,112930.0,0.26992232]
[1760159458726,0.17706949,112950.0,112930.0,0.21512232]
[1760159458845,0.18370949,112950.0,112930.0,0.26992232]
[1760159459056,0.17706949,112950.0,112930.0,0.26992232]
[1760159459300,0.21435287,112950.0,112940.0,0.069]
[1760159459674,0.21435287,112950.0,112940.0,0.06908852]
[1760159460049,0.20372287,112950.0,112940.0,0.12388852]
[1760159460303,0.21435287,112950.0,112940.0,0.06908852]
[1760159463807,0.21435287,112950.0,112940.0,0.30097369]
[1760159463808,0.20372287,112950.0,112940.0,0.30097369]
[1760159464005,0.21435287,112950.0,112940.0,0.07023562]
[1760159467008,0.22099287,112950.0,112940.0,0.00123562]
[1760159467417,0.21435287,112950.0,112940.0,0.00123562]
[1760159467620,0.22099287,112950.0,112940.0,0.00123562]
[1760159468971,0.21435287,112950.0,112940.0,0.00123562]
[1760159469430,0.22099287,112950.0,112940.0,0.00123562]
[1760159470838,0.25114477,112950.0,112940.0,0.00123562]
[1760159474834,0.21435287,112950.0,112940.0,0.07023562]
[1760159476448,0.20372287,112950.0,112940.0,0.30212079]
[1760159477266,0.02665338,112950.0,112940.0,0.30212079]
[1760159477478,0.02665338,112950.0,112940.0,0.9527529]
[1760159477683,0.18591971,112960.0,112940.0,0.9527529]
[1760159477890,0.00462862,112950.0,112940.0,0.8968058]
[1760159478504,0.18169811,112950.0,112940.0,0.9516058]
[1760159478932,0.18169811,112950.0,112940.0,0.30097369]
[1760159480436,0.00462862,112950.0,112940.0,0.30097369]
[1760159481674,0.18169811,112950.0,112940.0,0.30097369]
[1760159482265,0.00462862,112950.0,112940.0,0.30097369]
[1760159482473,0.00462862,112950.0,112940.0,0.9516058]
[1760159483188,0.00462862,112950.0,112940.0,0.30097369]
[1760159483400,0.00462862,112950.0,112940.0,0.30212079]
[1760159490624,0.01658267,112960.0,112940.0,0.30212079]
[1760159490832,0.1770556,112960.0,112950.0,0.02859]
[1760159491039,0.20165827,112960.0,112950.0,0.0670235]
[1760159491632,0.20165827,112960.0,112950.0,0.0005735]
[1760159492038,0.20265827,112960.0,112950.0,0.0384335]
[1760159492487,0.1860756,112960.0,112950.0,0.0384335]
[1760159492822,0.1910856,112960.0,112950.0,0.0005735]
[1760159493133,0.1860756,112960.0,112950.0,0.0384335]
[1760159493341,0.21273031,112960.0,112950.0,0.0005735]
[1760159493896,0.21273031,112960.0,112950.0,0.0384335]
[1760159494123,0.1860756,112960.0,112950.0,0.0005735]
[1760159495595,0.1910856,112960.0,112950.0,0.0005735]
[1760159496593,0.2212375,112960.0,112950.0,0.0005735]
[1760159496799,0.57783973,112960.0,112950.0,0.0005735]
[1760159497226,1.28013189,112960.0,112950.0,1e-08]
[1760159497428,1.28073959,112960.0,112950.0,1e-08]
[1760159498183,0.63010748,112960.0,112950.0,1e-08]
[1760159498398,0.62910748,112960.0,112950.0,1e-08]
[1760159498606,0.63010748,112960.0,112950.0,1e-08]
[1760159499251,0.63110748,112960.0,112950.0,1e-08]
[1760159499770,0.63210748,112960.0,112950.0,1e-08]
[1760159500312,1.28273959,112960.0,112950.0,1e-08]
[1760159500511,0.20725275,112930.0,112920.0,0.02652037]
[1760159500765,0.20725275,112930.0,112920.0,0.02667048]
[1760159500967,0.21527275,112930.0,112920.0,0.00015011]
[1760159501169,0.22028275,112930.0,112920.0,0.00015011]
[1760159501805,0.22128275,112930.0,112920.0,0.00015011]
[1760159504179,0.22128275,112930.0,112920.0,0.03801011]
[1760159504180,0.18612085,112930.0,112920.0,0.03801011]
[1760159504386,0.18612085,112930.0,112920.0,0.06660011]
[1760159505237,0.17810085,112930.0,112920.0,0.12355011]
[1760159506111,0.17810085,112930.0,112920.0,0.12527114]
[1760159506313,0.18612085,112930.0,112920.0,0.06832114]
[1760159506491,0.17810085,112930.0,112920.0,0.12527114]
[1760159506695,0.18612085,112930.0,112920.0,0.00187114]
[1760159506928,0.19113085,112930.0,112920.0,0.00187114]
[1760159508280,0.17713222,112910.0,112900.0,0.26118655]
[1760159508491,0.17713222,112910.0,112900.0,0.79443807]
[1760159508691,0.17713222,112910.0,112900.0,0.29069377]
[1760159508846,0.19857222,112910.0,112900.0,0.29069377]
[1760159509209,0.23453222,112910.0,112900.0,0.05659586]
[1760159509413,0.23453222,112910.0,112900.0,0.29069377]
[1760159509618,0.23453222,112910.0,112900.0,0.05659586]
[1760159509823,0.19857222,112910.0,112900.0,0.29069377]
[1760159510393,0.23502222,112910.0,112900.0,0.23374377]
[1760159510806,0.23502222,112910.0,112900.0,0.28797377]
[1760159511340,0.19857222,112910.0,112900.0,0.28797377]
[1760159512261,0.02144,112910.0,112900.0,0.28797377]
[1760159512447,0.17711654,112920.0,112900.0,0.28797377]
[1760159512591,0.17711654,112920.0,112910.0,0.02861]
[1760159512991,0.21356654,112920.0,112910.0,0.06443]
[1760159513522,0.02858201,112920.0,112910.0,0.06443]
[1760159513735,0.17711654,112920.0,112910.0,0.11866]
[1760159514399,0.21356654,112920.0,112910.0,0.06443]
[1760159515856,0.17711654,112920.0,112910.0,0.11866]
[1760159516016,0.21356654,112920.0,112910.0,0.06443]
[1760159516217,0.17711654,112920.0,112910.0,0.11866]
[1760159516420,0.17711654,112920.0,112910.0,0.29579222]
[1760159517101,0.1994876,112930.0,112920.0,0.17711654]
[1760159517319,0.00094675,112930.0,112920.0,0.7906672]
[1760159518537,0.00194675,112930.0,112920.0,0.7906672]
[1760159518751,0.00094675,112930.0,112920.0,0.7906672]
[1760159520308,0.00094675,112930.0,112920.0,0.86988589]
[1760159521731,0.00094675,112930.0,112920.0,0.87088589]
[1760159522387,0.00094675,112930.0,112920.0,0.87188589]
[1760159523646,0.00094675,112930.0,112920.0,0.98154506]
[1760159523849,0.00094675,112930.0,112920.0,0.90232637]
[1760159524944,0.00094675,112930.0,112920.0,0.7926672]
[1760159525146,0.00094675,112930.0,112920.0,0.90306951]
[1760159526273,0.00094675,112930.0,112920.0,0.92972197]
[1760159529203,0.00463566,112960.0,112950.0,0.17706949]
[1760159529410,0.24746445,113010.0,112980.0,0.17702248]
[1760159529411,0.29602445,113010.0,112980.0,0.17702248]
[1760159529618,0.07043184,113010.0,113000.0,0.24142115]
[1760159529825,0.24740732,113010.0,113000.0,0.06443]
[1760159530028,0.18161114,113010.0,113000.0,0.11866]
[1760159530461,0.00463566,113010.0,113000.0,0.29565115]
[1760159530669,0.00463566,113010.0,113000.0,0.79054181]
[1760159531076,0.00463566,113010.0,113000.0,0.77515181]
[1760159532236,0.00463566,113010.0,113000.0,0.59816066]
[1760159533490,0.00463566,113010.0,113000.0,0.77515181]
[1760159533712,0.00463566,113010.0,113000.0,0.28026115]
[1760159533925,0.00463566,113010.0,113000.0,0.77515181]
[1760159534605,0.00463566,113010.0,113000.0,0.59816066]
[1760159535106,0.00463566,113010.0,113000.0,0.10327]
[1760159535443,0.18161114,113010.0,113000.0,0.10327]
[1760159536427,0.00463566,113010.0,113000.0,0.28026115]
[1760159537265,0.18161114,113010.0,113000.0,0.10327]
[1760159537486,0.18161114,113010.0,113000.0,0.59816066]
[1760159538086,0.18161114,113010.0,113000.0,0.10327]
[1760159540044,0.18619717,113010.0,113000.0,0.10327]
[1760159543119,0.18255713,113020.0,113000.0,0.10327]
[1760159543292,0.17697548,113010.0,113000.0,0.10327]
[1760159549151,0.22690548,113010.0,113000.0,0.10327]
[1760159549394,0.19054548,113010.0,113000.0,0.10327]
[1760159549568,0.17697548,113010.0,113000.0,0.10327]
[1760159550349,0.21333548,113010.0,113000.0,0.10327]
[1760159550544,0.22690548,113010.0,113000.0,0.10327]
[1760159551591,0.22690548,113010.0,113000.0,0.04904]
[1760159551761,0.19054548,113010.0,113000.0,0.10553]
[1760159553805,0.17697548,113010.0,113000.0,0.10553]
[1760159554323,0.17696252,113020.0,113000.0,0.28252115]
[1760159554496,0.17696252,113020.0,113010.0,0.08562]
[1760159554884,0.23444252,113020.0,113010.0,0.06647]
[1760159556849,0.23444252,113020.0,113010.0,0.02913]
[1760159557049,0.23444252,113020.0,113010.0,0.06647]
[1760159558252,0.17697548,113010.0,113000.0,0.0851]
[1760159558465,0.21333548,113010.0,113000.0,0.12244]
[1760159558661,0.17697548,113010.0,113000.0,0.12244]
[1760159558862,0.17699115,113000.0,112990.0,0.02861]
[1760159559072,0.17699115,113000.0,112990.0,0.29944681]
[1760159559578,0.23535115,113000.0,112990.0,0.06595]
[1760159559780,0.29140115,113000.0,112980.0,0.10732938]
[1760159559986,0.19939425,113010.0,112990.0,0.12296]
[1760159560155,0.17698058,113010.0,113000.0,0.08562]
[1760159560356,0.17697548,113010.0,113000.0,0.12296]
[1760159560557,0.17697548,113010.0,113000.0,0.29995115]
[1760159560885,0.20750351,113020.0,113000.0,0.29995115]
[1760159561384,0.56410564,113020.0,113010.0,0.02913]
[1760159561551,0.21333548,113010.0,113000.0,0.02913]
[1760159561759,0.22690548,113010.0,113000.0,0.02913]
[1760159561935,0.17699115,113000.0,112990.0,0.26262681]
[1760159562147,0.19054548,113010.0,112990.0,0.30148596]
[1760159562348,0.17699115,113000.0,112990.0,0.29996681]
[1760159562777,0.23535115,113000.0,112980.0,0.29320241]
[1760159563122,0.23535115,113000.0,112980.0,0.34969241]
[1760159563316,0.23535115,113000.0,112990.0,0.03734]
[1760159563715,0.23535115,113000.0,112980.0,0.34969241]
[1760159563716,0.29140115,113000.0,112980.0,0.34969241]
[1760159564099,0.17699115,113000.0,112990.0,0.29996681]
[1760159564301,0.19939425,113010.0,112990.0,0.29996681]
[1760159564525,0.17699115,113000.0,112990.0,0.37868619]
[1760159565112,0.19939425,113010.0,112990.0,0.37868619]
[1760159565314,0.19939425,113010.0,113000.0,0.08562]
[1760159565679,0.19939425,113010.0,113000.0,0.12296]
[1760159566087,0.54750351,113020.0,113000.0,0.29995115]
[1760159566329,0.57242055,113020.0,113000.0,0.29995115]
[1760159566735,0.17697548,113010.0,113000.0,0.12296]
[1760159566939,0.22574548,113010.0,113000.0,0.06647]
[1760159567269,0.17699115,113000.0,112990.0,0.34134619]
[1760159567545,0.23535115,113000.0,112980.0,0.16381938]
[1760159567752,0.17700681,112990.0,112980.0,0.34084186]
[1760159567979,0.25504115,113000.0,112990.0,0.00151915]
[1760159568180,0.19899115,113000.0,112990.0,0.03064915]
[1760159568356,0.23535115,113000.0,112990.0,0.06798915]
[1760159568774,0.19823425,113010.0,112990.0,0.38020534]
[1760159568983,0.19823425,113010.0,113000.0,0.02913]
[1760159569261,0.23459425,113010.0,113000.0,0.06647]
[1760159571350,0.18938548,113010.0,113000.0,0.06647]
[1760159571555,0.18938548,113010.0,113000.0,0.12181]
[1760159572464,0.18938548,113010.0,113000.0,0.12281]
[1760159573152,0.22470548,113010.0,113000.0,0.06747]
[1760159573358,0.18938548,113010.0,113000.0,0.12281]
[1760159573658,0.17697548,113010.0,113000.0,0.29980115]
[1760159574072,0.17697548,113010.0,113000.0,0.12375591]
[1760159574469,0.54750351,113020.0,113000.0,0.37946644]
[1760159574892,0.17697548,113010.0,113000.0,0.37946644]
[1760159575291,0.21229548,113010.0,113000.0,0.32412644]
[1760159575494,0.28088548,113010.0,113000.0,0.08066529]
[1760159576092,0.22451548,113010.0,113000.0,0.08066529]
[1760159576293,0.22451548,113010.0,113000.0,0.11648529]
[1760159576862,0.17697548,113010.0,113000.0,0.37564644]
[1760159578019,0.17697548,113010.0,113000.0,0.19865529]
[1760159578217,0.21229548,113010.0,113000.0,0.14331529]
[1760159578497,0.22451548,113010.0,113000.0,0.14331529]
[1760159578691,0.18919548,113010.0,113000.0,0.19865529]
[1760159578900,0.22451548,113010.0,113000.0,0.14331529]
[1760159579075,0.22451548,113010.0,113000.0,0.10749529]
[1760159579293,0.28088548,113010.0,113000.0,0.08066529]
[1760159580021,0.22451548,113010.0,113000.0,0.08066529]
[1760159580236,0.18919548,113010.0,113000.0,0.37564644]
[1760159580396,0.17697548,113010.0,113000.0,0.37564644]
[1760159581020,0.21229548,113010.0,113000.0,0.14331529]
[1760159581248,0.28088548,113010.0,113000.0,0.08066529]
[1760159581589,0.93170007,113010.0,113000.0,0.08066529]
[1760159581789,0.93170007,113010.0,113000.0,0.00194591]
[1760159583075,0.28088548,113010.0,113000.0,0.00194591]
[1760159583691,0.17699115,113000.0,112990.0,0.03666529]
[1760159583842,0.19899115,113000.0,112990.0,0.03666529]
[1760159584037,0.29068115,113000.0,112990.0,0.03666529]
[1760159586116,0.23431115,113000.0,112990.0,0.07248529]
[1760159586530,0.23431115,113000.0,112990.0,0.15465529]
[1760159586742,0.23431115,113000.0,112990.0,0.09931529]
[1760159587346,0.18919548,113010.0,112990.0,0.29499681]
[1760159587548,0.18919548,113010.0,113000.0,0.02683]
[1760159587972,0.22451548,113010.0,113000.0,0.06265]
[1760159588382,0.17699115,113000.0,112990.0,0.25917681]
[1760159588607,0.17699115,113000.0,112990.0,0.29499681]
[1760159588804,0.17541952,113000.0,112990.0,0.29499681]
[1760159589251,0.17541952,113000.0,112990.0,0.29557001]
[1760159589436,0.19014135,113010.0,112990.0,0.29557001]
[1760159589672,0.19014135,113010.0,113000.0,0.02683]
[1760159590083,0.17699115,113000.0,112990.0,0.25975001]
[1760159590321,0.61819115,113000.0,112990.0,0.29557001]
[1760159590955,0.4412,113000.0,112990.0,0.29557001]
[1760159591168,0.61819115,113000.0,112990.0,0.29557001]
[1760159592165,0.4412,113000.0,112990.0,0.29557001]
[1760159592858,0.4412,113000.0,112990.0,0.3745576]
[1760159593890,0.00094587,113010.0,113000.0,0.17699115]
[1760159594049,0.00094587,113010.0,113000.0,0.37396916]
[1760159594430,0.17792135,113010.0,113000.0,0.37396916]
[1760159594888,0.00094587,113010.0,113000.0,0.37396916]
[1760159595196,0.00094587,113010.0,113000.0,0.29498115]
[1760159595341,0.00094587,113010.0,113000.0,0.40525981]
[1760159600451,0.04744587,113010.0,113000.0,0.34991981]
[1760159600677,0.01161587,113010.0,113000.0,0.40425981]
[1760159601321,0.18859135,113010.0,113000.0,0.22726866]
[1760159601524,0.18859135,113010.0,113000.0,0.18923927]
[1760159601525,0.27635135,113010.0,113000.0,0.18923927]
[1760159601698,0.27635135,113010.0,113000.0,0.07896061]
[1760159602159,0.22442135,113010.0,113000.0,0.11566061]
[1760159602999,0.22442135,113010.0,113000.0,0.19780061]
[1760159604394,0.22442135,113010.0,113000.0,0.14346061]
[1760159605170,0.22442135,113010.0,113000.0,0.19780061]
[1760159605462,0.17792135,113010.0,113000.0,0.37479176]
[1760159606401,0.22442135,113010.0,113000.0,0.14346061]
[1760159608170,0.18859135,113010.0,113000.0,0.19780061]
[1760159608352,0.17792135,113010.0,113000.0,0.37479176]
[1760159608513,0.00094587,113010.0,113000.0,0.37479176]
[1760159608757,0.00094587,113010.0,113000.0,0.29583115]
[1760159609386,0.17792135,113010.0,113000.0,0.29583115]
[1760159609595,0.00094587,113010.0,113000.0,0.29583115]
[1760159611354,0.00094587,113010.0,113000.0,0.40610981]
[1760159614389,0.00094587,113010.0,113000.0,1.3969244]
[1760159614590,0.2029617,113060.0,113040.0,0.17692033]
[1760159614816,0.17691287,113050.0,113040.0,0.25906033]
[1760159615022,0.17920427,113050.0,113040.0,0.29576033]
[1760159615590,0.23703427,113050.0,113040.0,0.0645]
[1760159615791,0.23703427,113050.0,113040.0,0.11884]
[1760159615792,0.17920427,113050.0,113040.0,0.11884]
[1760159616970,0.21503427,113050.0,113040.0,0.0205]
[1760159617085,0.21503427,113050.0,113040.0,0.04572]
[1760159617286,0.24247427,113050.0,113040.0,0.04572]
[1760159617894,0.23430502,113050.0,113040.0,0.04572]
[1760159619983,0.28623502,113050.0,113040.0,0.0367]
[1760159620118,0.23430502,113050.0,113040.0,0.0645]
[1760159620316,0.23430502,113050.0,113040.0,0.11884]
[1760159621381,0.23430502,113050.0,113040.0,0.0645]
[1760159621634,0.17692852,113040.0,113030.0,0.2679066]
[1760159621840,0.17692852,113040.0,113030.0,0.11884]
[1760159622263,0.21275852,113040.0,113030.0,0.11884]
[1760159622475,0.17692852,113040.0,113030.0,0.12035842]
[1760159622681,0.24019852,113040.0,113030.0,0.06601842]
[1760159622889,0.29212852,113040.0,113030.0,0.02931842]
[1760159623116,0.24019852,113040.0,113030.0,0.06601842]
[1760159624494,0.24003423,113040.0,113030.0,0.02201842]
[1760159624825,0.17694417,113030.0,113020.0,0.65909447]
[1760159625028,0.17694417,113030.0,113020.0,0.69579447]
[1760159625389,0.17694417,113030.0,113020.0,0.69636743]
[1760159625849,0.21277417,113030.0,113020.0,0.46507296]
[1760159626053,0.24021417,113030.0,113020.0,0.24203279]
[1760159626255,0.24021417,113030.0,113020.0,0.06507296]
[1760159626698,0.24021417,113030.0,113020.0,0.02837296]
[1760159626931,0.29214417,113030.0,113020.0,0.00057296]
[1760159628465,0.78617835,113030.0,113020.0,0.00057296]
[1760159629006,0.29214417,113030.0,113020.0,0.00057296]
[1760159632213,0.17697134,113020.0,113000.0,0.1561216]
[1760159632534,0.26026134,113020.0,113010.0,0.0139]
[1760159632709,0.17697548,113010.0,113000.0,0.1561216]
[1760159632891,0.17697548,113010.0,113000.0,0.1935516]
[1760159633428,0.21396548,113010.0,113000.0,0.1935516]
[1760159634073,0.21396548,113010.0,113000.0,0.20240115]
[1760159634807,0.26026134,113020.0,113000.0,0.20240115]
[1760159635233,0.17697548,113010.0,113000.0,0.20240115]
[1760159635623,0.27032702,113030.0,113010.0,0.17697548]